[Event "Romanian Championship 2024"]
[Site "Eforie Nord"]
[Date "2024.03.01"]
[Round "8.23"]
[White "Mazilu, Stefan Fabian"]
[Black "Danila, Tudor-Gabriel"]
[Result "0-1"]
[ECO "D00"]
[WhiteElo "2036"]
[BlackElo "1901"]
[Annotator "NA RC"]
[PlyCount "80"]
[EventDate "2024.02.24"]
[EventType "swiss"]
[EventCountry "ROU"]
[SourceTitle "playchess.com"]
[Source "ChessBase"]
[SourceQuality "1"]
[TimeControl "40/5400+30:900+30"]

1. d4 {[%emt 0:00:12]} Nf6 {[%emt 0:00:04]} 2. Nc3 {[%emt 0:00:44]} d5 {[%emt 0:00:06]} 3. Bf4 {[%emt 0:00:06]} e6 {[%emt 0:00:08]} 4. e3 {[%emt 0:00:08]} Bb4 {[%emt 0:00:04]} 5. Nge2 {[%emt 0:00:07]} O-O {[%emt 0:00:36]} 6. a3 {[%emt 0:00:07]} Ba5 {[%emt 0:01:14]} 7. b4 {[%emt 0:05:53]} Bb6 {[%emt 0:00:04]} 8. Ng3 {[%emt 0:00:07]} Re8 {[%emt 0:05:16]} 9. Nh5 {[%emt 0:20:38]} Nbd7 {[%emt 0:02:20]} 10. Nxf6+ {[%emt 0:11:24]} Qxf6 {[%emt 1:25:38]} 11. Be2 {[%emt 0:03:28]} c6 {[%emt 0:00:00]} 12. O-O {[%emt 0:07:47]} e5 {[%emt 0:00:00]} 13. dxe5 {[%emt 0:00:06]} Nxe5 {[%emt 0:00:00]} 14. Na4 {[%emt 0:00:46]} Bf5 {[%emt 0:00:00]} 15. Nxb6 {[%emt 0:04:28]} axb6 {[%emt 0:00:00]} 16. a4 {[%emt 0:00:08]} Ng6 {[%emt 0:00:00]} 17. Bc7 {[%emt 0:08:11]} Qe7 {[%emt 0:00:00]} 18. Bxb6 {[%emt 0:02:41]} Qxb4 {[%emt 0:00:00]} 19. a5 {[%emt 0:00:07]} Ne5 {[%emt 0:00:00]} 20. Qc1 {[%emt 0:13:08]} Qc3 {[%emt 0:00:00]} 21. Ra2 {[%emt 0:01:27]} Nc4 {[%emt 0:00:00]} 22. Bd4 {[%emt 0:03:55]} Qb4 {[%emt 0:00:00]} 23. Qa1 {[%emt 0:01:24]} f6 {[%emt 0:00:00]} 24. Rb1 {[%emt 0:01:05]} Qe7 {[%emt 0:00:00]} 25. Bxc4 {[%emt 0:03:32]} dxc4 {[%emt 0:00:00]} 26. Rb6 {[%emt 0:00:14]} c5 {[%emt 0:00:00]} 27. Bc3 {[%emt 0:00:04]} Qf7 {[%emt 0:00:00]} 28. Rab2 {[%emt 0:01:15]} Qg6 {[%emt 0:00:00]} 29. Qf1 {[%emt 0:01:06]} Rad8 {[%emt 0:00:00]} 30. Qxc4+ {[%emt 0:04:07]} Kh8 {[%emt 0:00:00]} 31. Rb1 {[%emt 0:02:20]} Bxc2 {[%emt 0:00:00]} 32. Rc1 {[%emt 0:00:18]} Be4 {[%emt 0:00:00]} 33. Qf1 {[%emt 0:00:09]} Qg5 {[%emt 0:00:00]} 34. h3 {[%emt 0:01:37]} Bd3 {[%emt 0:00:00]} 35. Qd1 {[%emt 0:02:04]} h5 {[%emt 0:00:00]} 36. Kh2 {[%emt 0:00:42]} Be4 {[%emt 0:00:00]} 37. Qf1 {[%emt 0:00:04]} Rd3 {[%emt 0:00:00]} 38. f3 {[%emt 0:02:27]} Bh7 {[%emt 0:00:00]} 39. e4 {[%emt 0:00:46]} Rxc3 {[%emt 0:00:00]} 40. f4 {[%emt 0:00:00]} Qg3+ {[%emt 0:00:00]} 0-1

[Event "Romanian Championship 2024"]
[Site "Eforie Nord"]
[Date "2024.03.02"]
[Round "9.1"]
[White "Magold, Filip"]
[Black "Parligras, Mircea-Emilian"]
[Result "1/2-1/2"]
[ECO "C65"]
[WhiteElo "2400"]
[BlackElo "2539"]
[Annotator "TA"]
[PlyCount "23"]
[EventDate "2024.02.24"]
[EventType "swiss"]
[EventCountry "ROU"]
[SourceTitle "playchess.com"]
[Source "ChessBase"]
[SourceQuality "1"]
[TimeControl "40/5400+30:900+30"]

{[%evp 9,23,5,25,16,18,21,29,33,26,25,36,36,27,25,39,29]} 1. e4 {[%emt 0:00:19]} e5 {[%emt 0:00:09]} 2. Nf3 {[%emt 0:00:05]} Nc6 {[%emt 0:00:07]} 3. Bb5 {[%emt 0:00:03]} Nf6 {[%emt 0:00:09]} 4. d3 {[%emt 0:00:24]} Bc5 {[%emt 0:00:09]} 5. c3 {[%emt 0:00:03]} O-O {[%emt 0:00:17]} 6. O-O {[%emt 0:00:09]} d5 {[%emt 0:00:10]} 7. exd5 {[%emt 0:00:04]} Qxd5 {[%emt 0:00:10][%cal Oc5f2]} 8. Bc4 {[%emt 0:00:03] White has an edge.} Qd8 {[%emt 0:00:20]} 9. Nbd2 {[%emt 0:00:44]} a6 {[%emt 0:01:04]} 10. b4 {[%emt 0:04:53]} Bd6 {[%emt 0:00:49]} 11. a4 {[%emt 0:02:11]} h6 {[%emt 0:00:45]} 12. h3 {[%emt 0:04:55] Weighted Error Value: White=0.00 (flawless) /Black=0.03 (flawless) .  OK:         	White=3     	Black=3} 1/2-1/2

[Event "Romanian Championship 2024"]
[Site "Eforie Nord"]
[Date "2024.03.02"]
[Round "9.2"]
[White "Lupulescu, Constantin"]
[Black "Nevednichy, Vladislav"]
[Result "1-0"]
[ECO "B07"]
[WhiteElo "2589"]
[BlackElo "2451"]
[Annotator "TA"]
[PlyCount "69"]
[EventDate "2024.02.24"]
[EventType "swiss"]
[EventCountry "ROU"]
[SourceTitle "playchess.com"]
[Source "ChessBase"]
[SourceQuality "1"]
[TimeControl "40/5400+30:900+30"]

{[%evp 15,69,16,47,19,42,40,59,50,67,33,53,51,67,60,135,116,137,145,162,166,183,188,188,175,185,0,180,0,197,186,205,155,143,154,127,139,126,140,171,181,161,173,213,195,213,190,204,202,504,492,463,487,641,656,659,649]} 1. d4 {[%emt 0:00:06]} d6 {[%emt 0:00:04]} 2. e4 {[%emt 0:03:42]} Nf6 {[%emt 0:00:03]} 3. Nc3 {[%emt 0:00:59]} e5 {[%emt 0:00:05]} 4. Nge2 {[%emt 0:01:12]} Nbd7 {[%emt 0:00:24]} 5. g3 {[%emt 0:03:43]} c6 {[%emt 0:00:31]} 6. a4 {[%emt 0:02:31]} Be7 {[%emt 0:01:27]} 7. Bg2 {[%emt 0:00:04]} O-O {[%emt 0:00:02]} 8. O-O {[%emt 0:00:12]} Re8 {[%emt 0:00:18]} 9. h3 {[%emt 0:02:26]} Bf8 {[%emt 0:00:03]} 10. g4 {[%emt 0:06:15]} exd4 {[%emt 0:00:05]} 11. Qxd4 {[%emt 0:03:04] White is slightly better.} h6 {[%emt 0:01:52]} 12. Ng3 {[%emt 0:07:05]} g6 {[%emt 0:01:25]} 13. Be3 {[%emt 0:05:18]} Ne5 {[%emt 0:03:07]} 14. f4 {[%emt 1:00:53]} Ned7 {[%emt 0:07:12]} ({Black should play} 14... Nexg4 $14 15. hxg4 Nxg4) 15. Qd2 {[%emt 0:00:00] White has more active pieces.} Nh7 {[%emt 0:03:32]} 16. a5 {[%emt 0:00:00]} a6 {[%emt 0:00:26]} 17. Na4 {[%emt 0:00:00]} Rb8 {[%emt 0:01:59]} 18. Ba7 {[%emt 0:00:00]} Ra8 {[%emt 1:16:55]} 19. Bf2 {[%emt 0:00:00]} Rb8 {[%emt 0:00:00]} 20. Ba7 {[%emt 0:00:00]} Ra8 {[%emt 0:01:00]} 21. Bf2 {[%emt 0:00:00]} Rb8 $1 {[%emt 0:00:00]} 22. Rad1 {[%emt 0:00:00]} Qc7 {[%emt 0:00:00]} 23. Rfe1 {[%emt 0:00:00]} c5 {[%emt 0:00:00]} 24. b4 {[%emt 0:00:00]} b5 {[%emt 0:00:00]} 25. axb6 {[%emt 0:00:00]} Nxb6 {[%emt 0:00:00]} 26. Nxb6 {[%emt 0:00:00]} Rxb6 {[%emt 0:00:00] [#]} 27. bxc5 {[%emt 0:00:00]} dxc5 {[%emt 0:00:00]} 28. e5 {[%emt 0:00:00] Prevents Rd6} g5 {[%emt 0:00:00]} 29. Ne4 {[%emt 0:00:00]} Bb7 {[%emt 0:00:00]} 30. f5 {[%emt 0:00:00] Bg3 would now be deadly.} ({Worse is} 30. fxg5 Bxe4 31. Rxe4 (31. Bxe4 Nxg5 32. Bg3 Nxe4 $11) 31... Nxg5 $14) 30... Bxe4 {[%emt 0:00:00]} 31. Bxe4 {[%emt 0:00:00]} c4 $2 {[%emt 0:00:00] [#]} (31... Rxe5 {is tougher.} 32. Bg3 Bd6) 32. Qd7 $18 {[%emt 0:09:00] White is clearly winning.} ({Weaker is} 32. Bxb6 Qxb6+ 33. Kg2 (33. Qd4 $2 Bc5 $19) 33... Rxe5 $18) 32... Qxd7 {[%emt 0:00:00]} 33. Rxd7 {[%emt 0:00:00]} Rb5 {[%emt 0:00:00] Black is weak on the light squares} 34. Bd5 {[%emt 0:00:00] A strong pair of Bishops.} Re7 {[%emt 0:00:00]} 35. Rd8 {[%emt 0:00:00] Weighted Error Value: White=0.26 (precise) /Black=0.32.  Mistake:       	---       	Black=2      Inaccurate:     	White=1     	Black=1      OK:         	White=10    	Black=4      Best:        	White=2     	Black=1      Strong:       	---       	Black=1} 1-0

[Event "Romanian Championship 2024"]
[Site "Eforie Nord"]
[Date "2024.03.02"]
[Round "9.3"]
[White "Gavrilescu, David"]
[Black "Cosma, Ioan"]
[Result "1-0"]
[ECO "B56"]
[WhiteElo "2523"]
[BlackElo "2316"]
[Annotator "TA"]
[PlyCount "79"]
[EventDate "2024.02.24"]
[EventType "swiss"]
[EventCountry "ROU"]
[SourceTitle "playchess.com"]
[Source "ChessBase"]
[SourceQuality "1"]
[TimeControl "40/5400+30:900+30"]

{[%evp 13,79,11,51,45,43,45,42,36,40,43,39,42,51,45,46,17,33,24,48,47,46,-3,24,18,31,0,0,0,51,51,59,68,77,74,66,29,31,29,56,44,72,77,75,75,72,65,63,70,111,95,112,104,114,97,196,193,212,212,383,285,487,432,1166,453,1384,735,606,372]} 1. e4 {[%emt 0:00:33]} c5 {[%emt 0:00:18]} 2. Nf3 {[%emt 0:00:06][%cal Bg1f3,Bf3d4,Bd4c6][%mdl 32]} Nc6 {[%emt 0:00:05]} 3. d4 {[%emt 0:00:10]} cxd4 {[%emt 0:00:07]} 4. Nxd4 {[%emt 0:00:04]} Nf6 {[%emt 0:00:48][%cal Bg8f6,Bf6g4,Bg4e3,Be3d1][%mdl 32]} 5. Nc3 {[%emt 0:00:06]} d6 {[%emt 0:00:09]} 6. Bb5 {[%emt 0:00:05]} Bd7 {[%emt 0:00:24]} 7. Be3 {[%emt 0:00:05]} Ng4 {[%emt 0:02:43]} 8. Nxc6 {[%emt 0:01:10]} Nxe3 {[%emt 0:00:09]} 9. Nxd8 {[%emt 0:00:05] A dynamic duo of knights.} Nxd1 {[%emt 0:00:12]} 10. Nxf7 {[%emt 0:00:04] White is slightly better.} (10. Nxb7 $2 Nxc3 11. Bxd7+ Kxd7 $19) 10... Nxc3 {[%emt 0:00:13]} 11. Bxd7+ {[%emt 0:00:03]} (11. Nxh8 $2 Nxb5 12. h4 g6 $19) 11... Kxf7 {[%emt 0:00:09]} ({Of course not} 11... Kxd7 $6 12. Nxh8 (12. bxc3 Rg8 $14) 12... Na4 13. e5 $18 (13. Nf7 g6 $18)) 12. bxc3 {[%emt 0:00:02]} e6 {[%emt 0:00:20] Black is weak on the light squares} 13. Rb1 {[%emt 0:01:12]} b6 {[%emt 0:00:15]} 14. Kd2 {[%emt 0:02:02]} Ke7 {[%emt 0:00:40]} 15. Bb5 {[%emt 0:00:16]} Rc8 {[%emt 0:00:46]} 16. h4 {[%emt 0:03:54]} g6 {[%emt 0:00:39]} 17. h5 {[%emt 0:05:00]} (17. Rb3 $14 {is superior.}) 17... Bg7 {[%emt 0:00:10]} 18. c4 {[%emt 0:00:09]} Rc5 {[%emt 0:05:20]} 19. Rb3 {[%emt 0:07:32]} Rg5 {[%emt 0:10:12]} 20. hxg6 {[%emt 0:13:17]} Rxg2 {[%emt 0:01:14]} (20... hxg6 $11 21. Rxh8 Bxh8) 21. gxh7 $14 {[%emt 0:02:14][%cal Oc4c5]} Rxf2+ {[%emt 0:01:13]} 22. Kd1 {[%emt 0:01:35][%cal Oc4c5]} ({But not} 22. Ke3 Rxc2 23. Rbb1 Rxa2 $15) 22... Be5 {[%emt 0:02:29]} 23. Ra3 {[%emt 0:03:05]} a5 {[%emt 0:00:18]} 24. Rah3 {[%emt 0:00:49]} (24. c5 $5 dxc5 25. Bc4 $16) 24... Rg2 {[%emt 0:06:54]} 25. Ba4 {[%emt 0:06:44]} Rg4 {[%emt 0:04:11]} 26. Bc6 {[%emt 0:01:07]} Bd4 {[%emt 0:06:36]} 27. c3 {[%emt 0:02:57]} Be5 {[%emt 0:08:00]} 28. Kc2 {[%emt 0:00:57]} Kd8 {[%emt 0:01:24]} 29. Rh6 {[%emt 0:01:09]} Ke7 {[%emt 0:05:24]} 30. R1h3 {[%emt 0:06:30]} Rg3 {[%emt 0:04:12]} 31. Rxg3 {[%emt 0:15:28]} Bxg3 $16 {[%emt 0:00:06][%mdl 4096] Endgame. KRB-KRB} 32. Kb3 {[%emt 0:03:06]} Be5 {[%emt 0:01:37]} 33. c5 {[%emt 0:06:28]} bxc5 {[%emt 0:03:39] [#]} (33... dxc5 $16 34. Kc4 Rf8) 34. c4 $1 $18 {[%emt 0:00:52]} Kf7 {[%emt 0:13:21]} 35. Ka4 {[%emt 0:00:46]} Kg7 $2 {[%emt 0:00:22]} (35... Bc3 36. Rh3 Bd4 37. Kxa5 Rb8) 36. Rxe6 {[%emt 0:00:27]} Kxh7 $2 {[%emt 0:02:04]} (36... Bc3 {was called for.} 37. Re7+ (37. Rxd6 Rxh7 38. Rd7+ Kg6 $18) 37... Kh6) 37. Kxa5 {[%emt 0:01:16][%cal Oe6e5] aiming for Rxe5! White is clearly winning.} Kg7 {[%emt 0:00:52]} (37... Rb8 $142 38. a4 Bg3) 38. a4 {[%emt 0:00:40]} (38. Rxe5 $142 Rh2 39. Re6) 38... Rh3 {[%emt 0:00:47]} (38... Rb8 $142 39. Ka6 Rb1) 39. Kb6 {[%emt 0:01:31][%cal Oe6e5] [#] And now Rxe5! would win.} Rb3+ {[%emt 0:00:37]} 40. Bb5 {[%emt 0:00:00] Weighted Error Value: White=0.26 (precise) /Black=0.32.  Mistake:       	White=2     	Black=6      Inaccurate:     	White=3     	Black=4      OK:         	White=16    	Black=9      Best:        	White=3     	Black=3} 1-0

[Event "Romanian Championship 2024"]
[Site "Eforie Nord"]
[Date "2024.03.02"]
[Round "9.4"]
[White "Ognean, Mihnea-Ionut"]
[Black "Ghimpu, Samuel-Timotei"]
[Result "0-1"]
[ECO "D33"]
[WhiteElo "2382"]
[BlackElo "2467"]
[Annotator "RC"]
[PlyCount "174"]
[EventDate "2024.02.24"]
[EventType "swiss"]
[EventCountry "ROU"]
[SourceTitle "playchess.com"]
[Source "ChessBase"]
[SourceQuality "1"]
[TimeControl "40/5400+30:900+30"]

1. Nf3 {[%emt 0:00:09]} c5 {[%emt 0:05:43]} 2. c4 {[%emt 0:02:14]} Nc6 {[%emt 0:01:32]} 3. Nc3 {[%emt 0:00:06]} Nf6 {[%emt 0:00:44]} 4. g3 {[%emt 0:02:01]} e6 {[%emt 0:00:41]} 5. Bg2 {[%emt 0:01:22]} d5 {[%emt 0:00:21]} 6. cxd5 {[%emt 0:00:25]} exd5 {[%emt 0:00:26]} 7. d4 {[%emt 0:00:12]} c4 {[%emt 0:01:03]} 8. a3 {[%emt 0:01:02]} Be7 {[%emt 0:00:56]} 9. O-O {[%emt 0:00:41]} h6 {[%emt 0:02:04]} 10. Ne5 {[%emt 0:06:04]} O-O {[%emt 0:01:06]} 11. Bf4 {[%emt 0:28:40]} Na5 {[%emt 0:01:08]} 12. Qc2 {[%emt 0:01:51]} Be6 {[%emt 0:01:49]} 13. f3 {[%emt 0:01:10]} b5 {[%emt 0:05:49]} 14. Rad1 {[%emt 0:02:11]} Qb6 {[%emt 0:04:24]} 15. g4 {[%emt 0:02:44]} Nb3 {[%emt 0:01:17]} 16. e3 {[%emt 0:00:04]} a5 {[%emt 0:00:24]} 17. h4 {[%emt 0:02:42]} b4 {[%emt 0:01:06]} 18. Ne2 {[%emt 0:00:24]} Nd7 {[%emt 0:01:49]} 19. Nxd7 {[%emt 0:13:16]} Bxd7 {[%emt 0:00:06]} 20. g5 {[%emt 0:00:03]} hxg5 {[%emt 0:03:02]} 21. hxg5 {[%emt 0:00:04]} Qg6 {[%emt 0:00:44]} 22. Qxg6 {[%emt 0:04:13]} fxg6 {[%emt 0:02:38]} 23. Be5 {[%emt 0:00:02]} Bc6 {[%emt 0:21:06]} 24. e4 dxe4 {[%emt 0:08:02]} 25. d5 {[%emt 0:07:05]} Bc5+ {[%emt 0:06:03]} 26. Kh2 {[%emt 0:00:12]} Bb5 {[%emt 0:00:11]} 27. fxe4 {[%emt 0:01:20]} c3 {[%emt 0:01:27]} 28. Rxf8+ {[%emt 0:00:04]} Rxf8 {[%emt 0:00:10]} 29. Nxc3 {[%emt 0:00:02]} bxc3 {[%emt 0:00:46]} 30. Bxc3 {[%emt 0:00:03]} Be2 {[%emt 0:14:53]} 31. Re1 {[%emt 0:00:57]} Bc4 {[%emt 0:05:48]} 32. Rd1 {[%emt 0:09:47]} Be2 {[%emt 0:06:59]} 33. Re1 {[%emt 0:00:04]} Bc4 {[%emt 0:00:04]} 34. Rd1 {[%emt 0:00:03]} Be3 {[%emt 0:01:06]} 35. e5 {[%emt 0:16:43]} Nc5 {[%emt 0:01:23]} 36. d6 {[%emt 0:00:00]} Bf4+ {[%emt 0:00:44]} 37. Kg1 {[%emt 0:00:00]} Be3+ {[%emt 0:00:04]} 38. Kh2 {[%emt 0:00:00]} Kf7 {[%emt 0:01:13]} 39. Bh3 {[%emt 0:00:00]} Be6 {[%emt 0:00:34]} 40. Rf1+ {[%emt 0:00:00]} Ke8 {[%emt 0:00:00]} 41. Rxf8+ {[%emt 0:02:10]} Kxf8 {[%emt 0:00:23]} 42. Bxa5 {[%emt 0:00:59]} Bf4+ {[%emt 0:04:11]} 43. Kg2 {[%emt 0:00:02]} Bxh3+ {[%emt 0:03:17]} 44. Kxh3 {[%emt 0:00:03]} Bxe5 {[%emt 0:00:14]} 45. b4 {[%emt 0:04:00]} Ne6 {[%emt 0:01:14]} 46. b5 {[%emt 0:01:07]} Bxd6 {[%emt 0:00:38]} 47. a4 {[%emt 0:00:02]} Ke7 {[%emt 0:02:03]} 48. Bc3 {[%emt 0:00:21]} Bc5 {[%emt 0:02:08]} 49. a5 {[%emt 0:01:36]} Kd6 {[%emt 0:00:32]} 50. Kg4 {[%emt 0:00:30]} Kd5 {[%emt 0:01:40]} 51. b6 {[%emt 0:00:09]} Kc6 {[%emt 0:00:24]} 52. Kf3 {[%emt 0:00:33]} Be7 {[%emt 0:00:09]} 53. Ke4 {[%emt 0:00:43]} Bxg5 {[%emt 0:00:57]} 54. Kf3 {[%emt 0:01:13]} Bf6 {[%emt 0:00:27]} 55. Bb4 {[%emt 0:00:04]} Kb5 {[%emt 0:04:28]} 56. Kg4 {[%emt 0:00:28]} Nd8 {[%emt 0:00:38]} 57. Bf8 {[%emt 0:00:28]} Kxa5 {[%emt 0:00:17]} 58. Bxg7 {[%emt 0:00:03]} Bxg7 {[%emt 0:00:05]} 59. Kg5 {[%emt 0:00:03]} Kxb6 {[%emt 0:00:05]} 60. Kxg6 {[%emt 0:00:04]} Bd4 {[%emt 0:00:09]} 61. Kf5 {[%emt 0:00:35]} Kc5 {[%emt 0:00:10]} 62. Ke4 {[%emt 0:00:06]} Ne6 {[%emt 0:00:30]} 63. Kf3 {[%emt 0:00:19]} Kd5 {[%emt 0:00:04]} 64. Kg4 {[%emt 0:00:27]} Ke4 {[%emt 0:00:07]} 65. Kg3 {[%emt 0:00:02]} Be3 {[%emt 0:01:06]} 66. Kg2 {[%emt 0:00:05]} Kf4 {[%emt 0:00:13]} 67. Kh1 {[%emt 0:00:07]} Kf3 {[%emt 0:00:14]} 68. Kh2 {[%emt 0:00:04]} Nf4 {[%emt 0:00:33]} 69. Kh1 {[%emt 0:00:04]} Bf2 {[%emt 0:00:08]} 70. Kh2 {[%emt 0:00:04]} Bg3+ {[%emt 0:00:20]} 71. Kh1 {[%emt 0:00:05]} Nd3 {[%emt 0:00:06]} 72. Kg1 {[%emt 0:00:03]} Nf2 {[%emt 0:00:06]} 73. Kf1 {[%emt 0:00:04]} Bh2 {[%emt 0:00:07]} 74. Ke1 {[%emt 0:00:03]} Ne4 {[%emt 0:00:06]} 75. Kd1 {[%emt 0:00:02]} Ke3 {[%emt 0:00:23]} 76. Kc2 {[%emt 0:00:04]} Nd2 {[%emt 0:00:10]} 77. Kb2 {[%emt 0:00:06]} Bd6 {[%emt 0:00:18]} 78. Kc3 {[%emt 0:00:06]} Bc5 {[%emt 0:00:11]} 79. Kc2 {[%emt 0:00:24]} Bb4 {[%emt 0:00:22]} 80. Kb2 {[%emt 0:00:12]} Kd3 {[%emt 0:00:08]} 81. Kc1 {[%emt 0:00:02]} Nc4 {[%emt 0:00:21]} 82. Kb1 {[%emt 0:00:09]} Kd2 {[%emt 0:00:22]} 83. Ka1 {[%emt 0:00:15]} Kc2 {[%emt 0:00:07]} 84. Ka2 {[%emt 0:00:02]} Ba3 {[%emt 0:03:15]} 85. Ka1 {[%emt 0:00:05]} Bc1 {[%emt 0:00:16]} 86. Ka2 {[%emt 0:00:04]} Nd2 {[%emt 0:00:07]} 87. Ka1 {[%emt 0:00:07]} Ne4 {[%emt 0:00:05]} 0-1

[Event "Romanian Championship 2024"]
[Site "Eforie Nord"]
[Date "2024.03.02"]
[Round "9.5"]
[White "Cnejev, Vladimir-Alexandru"]
[Black "Manolache, Marius"]
[Result "1-0"]
[ECO "B12"]
[WhiteElo "2311"]
[BlackElo "2387"]
[Annotator "TA"]
[PlyCount "73"]
[EventDate "2024.02.24"]
[EventType "swiss"]
[EventCountry "ROU"]
[SourceTitle "playchess.com"]
[Source "ChessBase"]
[SourceQuality "1"]
[TimeControl "40/5400+30:900+30"]

{[%evp 9,73,64,71,56,75,62,52,62,61,55,53,66,75,87,97,104,97,100,118,95,117,100,115,114,112,90,93,91,81,94,123,75,72,43,81,75,116,113,103,115,168,170,174,176,167,159,158,151,171,136,124,95,117,115,129,125,127,127,162,160,435,435,2043,1820,29981,29982]} 1. e4 {[%emt 0:06:56]} c6 {[%emt 0:00:27]} 2. d4 {[%emt 0:00:12]} Na6 {[%emt 0:00:10]} 3. Nf3 {[%emt 0:00:59]} Nc7 {[%emt 0:00:31]} 4. Bd3 {[%emt 0:03:31]} d6 {[%emt 0:01:24]} 5. O-O {[%emt 0:07:14]} g6 {[%emt 0:00:14]} 6. c3 {[%emt 0:01:40]} Bg7 {[%emt 0:00:12]} 7. h3 {[%emt 0:01:55]} Nf6 {[%emt 0:00:16][%cal Bg8f6,Bf6h5,Bh5f4][%mdl 32]} 8. Re1 {[%emt 0:01:14] White is slightly better.} O-O {[%emt 0:00:07]} 9. Nbd2 {[%emt 0:01:27][%cal Bb1d2,Bd2c4,Bc4e5][%mdl 32]} Nh5 {[%emt 0:08:19]} 10. Nc4 {[%emt 0:10:43]} d5 {[%emt 0:00:51]} 11. exd5 {[%emt 0:10:50]} Nxd5 {[%emt 0:02:02]} 12. Nce5 {[%emt 0:01:21]} Nhf4 {[%emt 0:16:35]} 13. Bf1 {[%emt 0:04:02] And now c4 would win.} Ne6 {[%emt 0:01:39]} 14. c4 {[%emt 0:07:22]} Nb6 {[%emt 0:05:51]} 15. b3 {[%emt 0:00:34]} a5 {[%emt 0:10:27]} 16. Bb2 {[%emt 0:03:05]} a4 {[%emt 0:00:41]} 17. Qc2 {[%emt 0:01:11]} axb3 {[%emt 0:12:04]} 18. axb3 {[%emt 0:01:36]} Rxa1 {[%emt 0:00:05]} 19. Bxa1 {[%emt 0:00:39]} Nf4 {[%emt 0:04:33]} 20. Bc3 {[%emt 0:02:35]} (20. Qc1 $142 Bh6 21. Qc3) 20... Nd7 $16 {[%emt 0:07:00]} 21. Nxd7 {[%emt 0:06:31]} Bxd7 {[%emt 0:00:45]} 22. Bb4 {[%emt 0:13:36][%cal Bc3b4,Bb4a5,Ba5b6,Bb6c5][%mdl 32]} Bf6 {[%emt 0:03:49]} 23. Qd2 {[%emt 0:03:07]} Ne6 {[%emt 0:05:57]} 24. d5 {[%emt 0:00:04]} cxd5 {[%emt 0:07:13]} (24... Nc7 $16) 25. cxd5 $18 {[%emt 0:00:07]} Nc7 {[%emt 0:00:11]} 26. Ba5 $1 {[%emt 0:03:19]} b6 {[%emt 0:00:07]} 27. Bxb6 {[%emt 0:00:03]} Qb8 {[%emt 0:00:02]} 28. Bc5 {[%emt 0:04:06] White is more active.} Re8 {[%emt 0:00:27][%cal Bf8e8,Be8c8,Bc8c7][%mdl 32]} 29. Bc4 {[%emt 0:00:32]} Nb5 {[%emt 0:00:24]} 30. Re2 $36 {[%emt 0:02:32][%mdl 2048] White is on the roll.} Nd6 {[%emt 0:02:05] [#]} 31. Bd4 $1 {[%emt 0:00:43]} Rc8 {[%emt 0:02:21]} 32. Bxf6 {[%emt 0:00:20]} exf6 {[%emt 0:00:05]} 33. Qf4 {[%emt 0:02:00]} Qb6 {[%emt 0:03:41] [#]} 34. Re7 $1 {[%emt 0:00:36]} (34. Qxf6 Nxc4 35. Qe7 Qxb3 (35... Re8 36. Qxe8+ Bxe8 37. Rxe8+ Kg7 38. bxc4 $16) 36. Qxd7 Qb8 $11) 34... Be8 $2 {[%emt 0:05:40]} (34... Bf5 $16 35. Nd4 g5) 35. Nd4 {[%emt 0:00:43]} (35. Qxf6 Nxc4 36. Qc3 Qd8 37. Rxe8+ Qxe8 $19) 35... Qd8 {[%emt 0:00:17]} (35... Rc7 $142) 36. Qxf6 {[%emt 0:00:30][%cal Od4e6] Ne6! is the strong threat.} Rc7 {[%emt 0:01:05] [#]} 37. Ne6 $1 {[%emt 0:00:05][%mdl 512] Weighted Error Value: White=0.08 (flawless) /Black=0.36.  Loses game:     	---       	Black=1      Mistake:       	White=1     	Black=2      Inaccurate:     	White=1     	Black=4      OK:         	White=9     	Black=10     Best:        	White=2     	Black=3      Strong:       	White=3     	---} 1-0